[Event "Titled Tuesday Blitz December 20 Early 2022"]
[White "ProfessorChess101"]
[Black "Tomescu, Vlad"]
[BlackFideId "1201026"]
[WhiteElo "2662"]
[BlackElo "2323"]
[Result "1/2-1/2"]
[Round "05"]
[TimeControl "180+2"]
[Date "2022.12.20"]
[WhiteClock "0:00:04"]
[BlackClock "0:00:13"]

1. e4 {[%clk 0:03:00]}  c6 {[%clk 0:02:59]} 2. Nf3 {[%clk 0:02:56]}  d5 {[%clk 0:03:00]} 3. Nc3 {[%clk 0:02:57]}  Nf6 {[%clk 0:03:00]} 4. e5 {[%clk 0:02:55]}  Ne4 {[%clk 0:03:00]} 5. Ne2 {[%clk 0:02:55]}  Qb6 {[%clk 0:03:01]} 6. d4 {[%clk 0:02:53]}  e6 {[%clk 0:03:01]} 7. Ng3 {[%clk 0:02:52]}  c5 {[%clk 0:03:00]} 8. Bd3 {[%clk 0:02:43]}  Nxg3 {[%clk 0:03:00]} 9. hxg3 {[%clk 0:02:43]}  Nc6 {[%clk 0:02:53]} 10. c3 {[%clk 0:02:31]}  cxd4 {[%clk 0:02:48]} 11. cxd4 {[%clk 0:02:31]}  Bd7 {[%clk 0:02:48]} 12. Be3 {[%clk 0:02:14]}  Nb4 {[%clk 0:02:48]} 13. Be2 {[%clk 0:02:04]}  Rc8 {[%clk 0:02:41]} 14. Rc1 {[%clk 0:01:41]}  Rxc1 {[%clk 0:02:32]} 15. Qxc1 {[%clk 0:01:42]}  Nxa2 {[%clk 0:02:28]} 16. Qa1 {[%clk 0:01:11]}  Nb4 {[%clk 0:02:20]} 17. Qb1 {[%clk 0:01:01]}  h6 {[%clk 0:02:03]} 18. g4 {[%clk 0:01:01]}  Bb5 {[%clk 0:02:01]} 19. Qd1 {[%clk 0:00:53]}  Qa6 {[%clk 0:01:53]} 20. Kf1 {[%clk 0:00:29]}  Be7 {[%clk 0:01:33]} 21. g5 {[%clk 0:00:28]}  h5 {[%clk 0:01:26]} 22. Bxb5+ {[%clk 0:00:27]}  Qxb5+ {[%clk 0:01:25]} 23. Qe2 {[%clk 0:00:28]}  Qxe2+ {[%clk 0:01:21]} 24. Kxe2 {[%clk 0:00:29]}  g6 {[%clk 0:01:18]} 25. g4 {[%clk 0:00:23]}  Kd7 {[%clk 0:01:11]} 26. Ne1 {[%clk 0:00:18]}  h4 {[%clk 0:01:08]} 27. Ng2 {[%clk 0:00:18]}  Rc8 {[%clk 0:01:06]} 28. Kf3 {[%clk 0:00:06]}  Rc2 {[%clk 0:01:00]} 29. Rxh4 {[%clk 0:00:06]}  Rxb2 {[%clk 0:00:59]} 30. Rh7 {[%clk 0:00:07]}  a5 {[%clk 0:00:58]} 31. Rxf7 {[%clk 0:00:05]}  a4 {[%clk 0:00:58]} 32. Nf4 {[%clk 0:00:05]}  a3 {[%clk 0:00:55]} 33. Bc1 {[%clk 0:00:03]}  Rb3+ {[%clk 0:00:53]} 34. Kg2 {[%clk 0:00:03]}  a2 {[%clk 0:00:53]} 35. Nxg6 {[%clk 0:00:03]}  Nc6 {[%clk 0:00:49]} 36. Nxe7 {[%clk 0:00:03]}  Nxe7 {[%clk 0:00:48]} 37. g6 {[%clk 0:00:03]}  a1=Q {[%clk 0:00:38]} 38. g7 {[%clk 0:00:03]}  Qxc1 {[%clk 0:00:18]} 39. g8=Q {[%clk 0:00:03]}  Rb1 {[%clk 0:00:17]} 40. Rxe7+ {[%clk 0:00:03]}  Kxe7 {[%clk 0:00:15]} 41. Qg7+ {[%clk 0:00:03]}  Kd8 {[%clk 0:00:15]} 42. Qf8+ {[%clk 0:00:03]}  Kc7 {[%clk 0:00:15]} 43. Qd6+ {[%clk 0:00:04]}  Kc8 {[%clk 0:00:15]} 44. Qf8+ {[%clk 0:00:05]}  Kd7 {[%clk 0:00:14]} 45. Qd6+ {[%clk 0:00:05]}  Ke8 {[%clk 0:00:14]} 46. Qxe6+ {[%clk 0:00:06]}  Kf8 {[%clk 0:00:14]} 47. Qf6+ {[%clk 0:00:05]}  Kg8 {[%clk 0:00:14]} 48. Qg6+ {[%clk 0:00:05]}  Kh8 {[%clk 0:00:14]} 49. Qe8+ {[%clk 0:00:05]}  Kg7 {[%clk 0:00:14]} 50. Qe7+ {[%clk 0:00:05]}  Kh6 {[%clk 0:00:12]} 51. Qf6+ {[%clk 0:00:04]}  Kh7 {[%clk 0:00:12]} 52. Qf7+ {[%clk 0:00:05]}  Kh8 {[%clk 0:00:13]} 53. Qf8+ {[%clk 0:00:05]}  Kh7 {[%clk 0:00:13]} 54. Qf7+ {[%clk 0:00:05]}  Kh6 {[%clk 0:00:13]} 55. Qf6+ {[%clk 0:00:04]}  Kh7 {[%clk 0:00:13]} 56. Qf7+ {[%clk 0:00:04]} 1/2-1/2


[Site "https://www.chess.com"]

[Event "Titled Tuesday Blitz December 20 Early 2022"]
[White "Rapy, Francois"]
[Black "Paspuel, Trosky"]
[WhiteFideId "26041324"]
[BlackFideId "3602150"]
[WhiteElo "1642"]
[BlackElo "1721"]
[Result "1/2-1/2"]
[Round "05"]
[TimeControl "180+2"]
[Date "2022.12.20"]
[WhiteClock "0:00:07"]
[BlackClock "0:00:06"]

1. e4 {[%clk 0:03:00]}  c6 {[%clk 0:02:58]} 2. d4 {[%clk 0:03:00]}  d5 {[%clk 0:02:59]} 3. f3 {[%clk 0:03:01]}  Qb6 {[%clk 0:02:58]} 4. a4 {[%clk 0:03:00]}  a5 {[%clk 0:02:55]} 5. Nc3 {[%clk 0:02:58]}  dxe4 {[%clk 0:02:51]} 6. fxe4 {[%clk 0:02:58]}  e5 {[%clk 0:02:52]} 7. Nf3 {[%clk 0:02:23]}  exd4 {[%clk 0:02:50]} 8. Qxd4 {[%clk 0:02:21]}  Qxd4 {[%clk 0:02:41]} 9. Nxd4 {[%clk 0:02:21]}  Bc5 {[%clk 0:02:35]} 10. Nb3 {[%clk 0:02:16]}  Bd6 {[%clk 0:02:36]} 11. Be3 {[%clk 0:02:14]}  Nf6 {[%clk 0:02:28]} 12. O-O-O {[%clk 0:02:01]}  Bc7 {[%clk 0:02:27]} 13. Bd4 {[%clk 0:01:21]}  Nbd7 {[%clk 0:02:16]} 14. Bd3 {[%clk 0:01:20]}  Ne5 {[%clk 0:02:12]} 15. Rdf1 {[%clk 0:01:04]}  O-O {[%clk 0:02:10]} 16. Nd2 {[%clk 0:00:57]}  Be6 {[%clk 0:02:00]} 17. Nf3 {[%clk 0:00:47]}  Nxd3+ {[%clk 0:01:47]} 18. cxd3 {[%clk 0:00:46]}  Rad8 {[%clk 0:01:34]} 19. Bxf6 {[%clk 0:00:38]}  gxf6 {[%clk 0:01:33]} 20. Kc2 {[%clk 0:00:38]}  f5 {[%clk 0:00:50]} 21. Nh4 {[%clk 0:00:37]}  fxe4 {[%clk 0:00:49]} 22. Nxe4 {[%clk 0:00:38]}  f5 {[%clk 0:00:31]} 23. Ng5 {[%clk 0:00:20]}  Bc8 {[%clk 0:00:23]} 24. Rhg1 {[%clk 0:00:16]}  Rd4 {[%clk 0:00:23]} 25. Nhf3 {[%clk 0:00:15]}  Rxa4 {[%clk 0:00:24]} 26. d4 {[%clk 0:00:13]}  h6 {[%clk 0:00:24]} 27. Nh3 {[%clk 0:00:13]}  c5 {[%clk 0:00:20]} 28. b3 {[%clk 0:00:12]}  Ra2+ {[%clk 0:00:08]} 29. Kb1 {[%clk 0:00:13]}  Re2 {[%clk 0:00:09]} 30. dxc5 {[%clk 0:00:13]}  f4 {[%clk 0:00:07]} 31. Nf2 {[%clk 0:00:12]}  Bf5+ {[%clk 0:00:07]} 32. Kc1 {[%clk 0:00:10]}  Rd8 {[%clk 0:00:06]} 33. Rd1 {[%clk 0:00:10]}  Rxf2 {[%clk 0:00:05]} 34. Nd4 {[%clk 0:00:09]}  Bg6 {[%clk 0:00:02]} 35. Rge1 {[%clk 0:00:08]}  Re8 {[%clk 0:00:01]} 36. Ne6 {[%clk 0:00:08]}  Bb8 {[%clk 0:00:01]} 37. Rd7 {[%clk 0:00:07]}  Rxg2 {[%clk 0:00:01]} 38. Rg7+ {[%clk 0:00:07]}  Kh8 {[%clk 0:00:01]} 39. Rxb7 {[%clk 0:00:07]}  Be5 {[%clk 0:00:01]} 40. Rxe5 {[%clk 0:00:06]}  Bf5 {[%clk 0:00:01]} 41. Rxf5 {[%clk 0:00:06]}  Rxe6 {[%clk 0:00:01]} 42. Rf8+ {[%clk 0:00:06]}  Rg8 {[%clk 0:00:02]} 43. Rff7 {[%clk 0:00:05]}  Rge8 {[%clk 0:00:01]} 44. Rh7+ {[%clk 0:00:05]}  Kg8 {[%clk 0:00:02]} 45. Rbg7+ {[%clk 0:00:06]}  Kf8 {[%clk 0:00:03]} 46. Rf7+ {[%clk 0:00:06]}  Kg8 {[%clk 0:00:03]} 47. Rhg7+ {[%clk 0:00:06]}  Kh8 {[%clk 0:00:04]} 48. Rh7+ {[%clk 0:00:06]}  Kg8 {[%clk 0:00:04]} 49. Rhg7+ {[%clk 0:00:06]}  Kh8 {[%clk 0:00:05]} 50. Rh7+ {[%clk 0:00:07]}  Kg8 {[%clk 0:00:06]} 1/2-1/2


[Site "https://www.chess.com"]

[Event "Titled Tuesday Blitz December 20 Early 2022"]
[White "RianKapriaga"]
[Black "MalyDominator"]
[WhiteElo "2327"]
[BlackElo "2428"]
[Result "1-0"]
[Round "05"]
[TimeControl "180+2"]
[Date "2022.12.20"]
[WhiteClock "0:00:21"]
[BlackClock "0:00:14"]

1. d4 {[%clk 0:02:57]}  Nf6 {[%clk 0:02:59]} 2. Nf3 {[%clk 0:02:57]}  e6 {[%clk 0:03:00]} 3. Bf4 {[%clk 0:02:56]}  d5 {[%clk 0:02:58]} 4. e3 {[%clk 0:02:56]}  Be7 {[%clk 0:02:53]} 5. Nbd2 {[%clk 0:02:55]}  O-O {[%clk 0:02:53]} 6. Bd3 {[%clk 0:02:55]}  Nh5 {[%clk 0:02:53]} 7. Bg3 {[%clk 0:02:45]}  Nxg3 {[%clk 0:02:48]} 8. hxg3 {[%clk 0:02:37]}  h6 {[%clk 0:02:47]} 9. Ne5 {[%clk 0:02:31]}  Nd7 {[%clk 0:02:44]} 10. f4 {[%clk 0:02:22]}  Nxe5 {[%clk 0:02:38]} 11. fxe5 {[%clk 0:02:22]}  c5 {[%clk 0:02:26]} 12. c3 {[%clk 0:02:21]}  Bg5 {[%clk 0:02:24]} 13. Qe2 {[%clk 0:02:21]}  f5 {[%clk 0:02:18]} 14. O-O-O {[%clk 0:02:12]}  cxd4 {[%clk 0:02:15]} 15. exd4 {[%clk 0:02:11]}  Bd7 {[%clk 0:02:15]} 16. Kb1 {[%clk 0:02:08]}  Rb8 {[%clk 0:02:13]} 17. g4 {[%clk 0:02:07]}  g6 {[%clk 0:02:03]} 18. gxf5 {[%clk 0:02:04]}  gxf5 {[%clk 0:02:02]} 19. g4 {[%clk 0:02:04]}  f4 {[%clk 0:02:00]} 20. Nf3 {[%clk 0:02:00]}  Rf7 {[%clk 0:01:57]} 21. Rh5 {[%clk 0:01:57]}  Rg7 {[%clk 0:01:47]} 22. Rdh1 {[%clk 0:01:54]}  Qc7 {[%clk 0:01:40]} 23. Qh2 {[%clk 0:01:10]}  Rf8 {[%clk 0:00:57]} 24. Nxg5 {[%clk 0:00:53]}  hxg5 {[%clk 0:00:56]} 25. Rh7 {[%clk 0:00:25]}  Be8 {[%clk 0:00:44]} 26. Qh6 {[%clk 0:00:23]}  f3 {[%clk 0:00:14]} 27. Rh8+ {[%clk 0:00:21]}  Kf7 {[%clk 0:00:14]} 28. Qf6# {[%clk 0:00:21]} 1-0


[Site "https://www.chess.com"]

[Event "Titled Tuesday Blitz December 20 Early 2022"]
[White "Salomez, Maxime"]
[Black "Truequitos"]
[WhiteFideId "652079600"]
[WhiteElo "1359"]
[BlackElo "2536"]
[Result "1-0"]
[Round "05"]
[TimeControl "180+2"]
[Date "2022.12.20"]
[WhiteClock "0:00:07"]
[BlackClock "0:00:03"]

1. e4 {[%clk 0:03:00]}  e6 {[%clk 0:02:57]} 2. d4 {[%clk 0:03:00]}  c5 {[%clk 0:02:56]} 3. Nf3 {[%clk 0:02:54]}  a6 {[%clk 0:02:56]} 4. Nc3 {[%clk 0:02:49]}  b5 {[%clk 0:02:56]} 5. Bd3 {[%clk 0:02:32]}  b4 {[%clk 0:02:54]} 6. Ne2 {[%clk 0:02:30]}  Nf6 {[%clk 0:02:55]} 7. c3 {[%clk 0:02:30]}  Bb7 {[%clk 0:02:53]} 8. Ng3 {[%clk 0:02:27]}  d5 {[%clk 0:02:51]} 9. e5 {[%clk 0:02:24]}  Ne4 {[%clk 0:02:51]} 10. cxb4 {[%clk 0:02:12]}  c4 {[%clk 0:02:28]} 11. Bc2 {[%clk 0:01:52]}  Bxb4+ {[%clk 0:02:27]} 12. Kf1 {[%clk 0:01:52]}  O-O {[%clk 0:02:06]} 13. Qe2 {[%clk 0:01:52]}  f5 {[%clk 0:01:49]} 14. exf6 {[%clk 0:01:51]}  Nxf6 {[%clk 0:01:49]} 15. h4 {[%clk 0:01:47]}  Qd6 {[%clk 0:01:36]} 16. h5 {[%clk 0:01:30]}  Nbd7 {[%clk 0:01:34]} 17. h6 {[%clk 0:01:30]}  g6 {[%clk 0:01:32]} 18. Bg5 {[%clk 0:01:24]}  Ng4 {[%clk 0:01:26]} 19. a3 {[%clk 0:01:16]}  Ba5 {[%clk 0:01:23]} 20. Bd2 {[%clk 0:00:59]}  Bc7 {[%clk 0:01:22]} 21. Bb4 {[%clk 0:00:54]}  Qf4 {[%clk 0:01:23]} 22. Bxf8 {[%clk 0:00:46]}  Rxf8 {[%clk 0:01:24]} 23. Qxe6+ {[%clk 0:00:42]}  Rf7 {[%clk 0:01:20]} 24. Bxg6 {[%clk 0:00:18]}  hxg6 {[%clk 0:00:58]} 25. Qxg6+ {[%clk 0:00:16]}  Kh8 {[%clk 0:00:59]} 26. h7 {[%clk 0:00:17]}  Rf8 {[%clk 0:00:21]} 27. Nh5 {[%clk 0:00:09]}  Qf7 {[%clk 0:00:13]} 28. Qxg4 {[%clk 0:00:09]}  Nf6 {[%clk 0:00:12]} 29. Nxf6 {[%clk 0:00:09]}  Qxf6 {[%clk 0:00:13]} 30. Re1 {[%clk 0:00:08]}  Bc8 {[%clk 0:00:13]} 31. Qg5 {[%clk 0:00:07]}  Qf7 {[%clk 0:00:07]} 32. Re7 {[%clk 0:00:07]}  Qf6 {[%clk 0:00:03]} 33. Qxf6+ {[%clk 0:00:06]}  Rxf6 {[%clk 0:00:03]} 34. Re8+ {[%clk 0:00:07]} 1-0


[Site "https://www.chess.com"]

[Event "Titled Tuesday Blitz December 20 Early 2022"]
[White "Sapon, Ilia"]
[Black "biostatistician"]
[WhiteFideId "13504746"]
[WhiteElo "2074"]
[BlackElo "2574"]
[Result "1-0"]
[Round "05"]
[TimeControl "180+2"]
[Date "2022.12.20"]
[WhiteClock "0:00:18"]
[BlackClock "0:00:55"]

1. e4 {[%clk 0:03:00]}  e5 {[%clk 0:02:59]} 2. Nf3 {[%clk 0:02:59]}  Nc6 {[%clk 0:03:00]} 3. Nc3 {[%clk 0:02:54]}  Nf6 {[%clk 0:03:00]} 4. Bb5 {[%clk 0:02:54]}  Bb4 {[%clk 0:02:59]} 5. O-O {[%clk 0:02:52]}  O-O {[%clk 0:02:59]} 6. d3 {[%clk 0:02:50]}  d6 {[%clk 0:02:59]} 7. Ne2 {[%clk 0:02:49]}  Ne7 {[%clk 0:02:59]} 8. Ng3 {[%clk 0:02:49]}  c6 {[%clk 0:02:58]} 9. Ba4 {[%clk 0:02:47]}  Ng6 {[%clk 0:02:57]} 10. c3 {[%clk 0:02:46]}  Ba5 {[%clk 0:02:57]} 11. h3 {[%clk 0:02:44]}  d5 {[%clk 0:02:55]} 12. Qe2 {[%clk 0:02:27]}  Bc7 {[%clk 0:02:52]} 13. Bb3 {[%clk 0:02:06]}  Re8 {[%clk 0:02:50]} 14. Bg5 {[%clk 0:02:02]}  Be6 {[%clk 0:02:50]} 15. Nh5 {[%clk 0:01:57]}  dxe4 {[%clk 0:02:05]} 16. dxe4 {[%clk 0:01:52]}  Bxb3 {[%clk 0:02:06]} 17. axb3 {[%clk 0:01:52]}  Re6 {[%clk 0:02:06]} 18. Rad1 {[%clk 0:01:35]}  Qf8 {[%clk 0:02:06]} 19. Bxf6 {[%clk 0:01:31]}  gxf6 {[%clk 0:02:07]} 20. Rd2 {[%clk 0:01:07]}  Qh6 {[%clk 0:02:01]} 21. Ng3 {[%clk 0:01:06]}  Nf4 {[%clk 0:01:58]} 22. Qd1 {[%clk 0:00:59]}  Bb6 {[%clk 0:01:53]} 23. Kh2 {[%clk 0:00:58]}  Kh8 {[%clk 0:01:52]} 24. Nf5 {[%clk 0:00:56]}  Qg6 {[%clk 0:01:46]} 25. N3h4 {[%clk 0:00:54]}  Qg5 {[%clk 0:01:46]} 26. g3 {[%clk 0:00:52]}  Rg8 {[%clk 0:01:42]} 27. gxf4 {[%clk 0:00:38]}  Qxf4+ {[%clk 0:01:42]} 28. Kh1 {[%clk 0:00:37]}  Qxe4+ {[%clk 0:01:42]} 29. Qf3 {[%clk 0:00:32]}  Qxf3+ {[%clk 0:01:22]} 30. Nxf3 {[%clk 0:00:33]}  e4 {[%clk 0:01:22]} 31. N3d4 {[%clk 0:00:25]}  Bxd4 {[%clk 0:01:19]} 32. Rxd4 {[%clk 0:00:24]}  Re5 {[%clk 0:01:18]} 33. Nh6 {[%clk 0:00:20]}  Rf8 {[%clk 0:01:16]} 34. Rg1 {[%clk 0:00:19]}  Ree8 {[%clk 0:01:02]} 35. Rd7 {[%clk 0:00:19]}  e3 {[%clk 0:00:54]} 36. fxe3 {[%clk 0:00:18]}  Rxe3 {[%clk 0:00:55]} 37. Nxf7+ {[%clk 0:00:17]}  Rxf7 {[%clk 0:00:55]} 38. Rd8+ {[%clk 0:00:18]} 1-0


[Site "https://www.chess.com"]

[Event "Titled Tuesday Blitz December 20 Early 2022"]
[White "Schattmann, Alfred"]
[Black "Harry_Rakkel"]
[WhiteFideId "4662377"]
[WhiteElo "1746"]
[BlackElo "2611"]
[Result "0-1"]
[Round "05"]
[TimeControl "180+2"]
[Date "2022.12.20"]
[WhiteClock "0:00:03"]
[BlackClock "0:00:26"]

1. c4 {[%clk 0:03:00]}  e5 {[%clk 0:02:55]} 2. Nc3 {[%clk 0:03:00]}  Nc6 {[%clk 0:02:54]} 3. Nf3 {[%clk 0:02:59]}  Nf6 {[%clk 0:02:52]} 4. g3 {[%clk 0:02:58]}  d5 {[%clk 0:02:50]} 5. cxd5 {[%clk 0:02:54]}  Nxd5 {[%clk 0:02:51]} 6. Bg2 {[%clk 0:02:53]}  Nb6 {[%clk 0:02:50]} 7. O-O {[%clk 0:02:51]}  Be7 {[%clk 0:02:50]} 8. d3 {[%clk 0:02:51]}  O-O {[%clk 0:02:50]} 9. b3 {[%clk 0:02:49]}  f5 {[%clk 0:02:43]} 10. Bb2 {[%clk 0:02:48]}  Bf6 {[%clk 0:02:42]} 11. e4 {[%clk 0:02:42]}  f4 {[%clk 0:02:18]} 12. Nd5 {[%clk 0:02:16]}  fxg3 {[%clk 0:02:02]} 13. hxg3 {[%clk 0:01:55]}  Bg4 {[%clk 0:01:58]} 14. Nxb6 {[%clk 0:01:16]}  axb6 {[%clk 0:01:56]} 15. Qd2 {[%clk 0:01:16]}  Bxf3 {[%clk 0:01:48]} 16. Bxf3 {[%clk 0:01:15]}  Be7 {[%clk 0:01:48]} 17. Bg4 {[%clk 0:00:56]}  Bc5 {[%clk 0:01:47]} 18. Be6+ {[%clk 0:00:56]}  Kh8 {[%clk 0:01:47]} 19. Bd5 {[%clk 0:00:55]}  Nd4 {[%clk 0:01:30]} 20. Bxd4 {[%clk 0:00:39]}  Bxd4 {[%clk 0:01:29]} 21. Rac1 {[%clk 0:00:39]}  c6 {[%clk 0:01:27]} 22. Be6 {[%clk 0:00:37]}  Qd6 {[%clk 0:01:23]} 23. Bh3 {[%clk 0:00:29]}  Rf6 {[%clk 0:01:18]} 24. Rc2 {[%clk 0:00:22]}  Raf8 {[%clk 0:01:15]} 25. Qe1 {[%clk 0:00:22]}  Rg6 {[%clk 0:01:07]} 26. Kg2 {[%clk 0:00:22]}  Qf6 {[%clk 0:01:07]} 27. Qe2 {[%clk 0:00:20]}  Qg5 {[%clk 0:01:05]} 28. Bf5 {[%clk 0:00:19]}  Rh6 {[%clk 0:00:57]} 29. Rh1 {[%clk 0:00:17]}  Rxh1 {[%clk 0:00:56]} 30. Kxh1 {[%clk 0:00:18]}  g6 {[%clk 0:00:56]} 31. f4 {[%clk 0:00:04]}  exf4 {[%clk 0:00:50]} 32. Rc4 {[%clk 0:00:04]}  c5 {[%clk 0:00:37]} 33. Bh3 {[%clk 0:00:02]}  fxg3 {[%clk 0:00:30]} 34. Rxd4 {[%clk 0:00:02]}  cxd4 {[%clk 0:00:27]} 35. Qb2 {[%clk 0:00:03]}  Qe3 {[%clk 0:00:26]} 0-1


[Site "https://www.chess.com"]

[Event "Titled Tuesday Blitz December 20 Early 2022"]
[White "Shironin, Daniil Aleks"]
[Black "AsaHoffmann"]
[WhiteFideId "55812198"]
[WhiteElo "2115"]
[BlackElo "2376"]
[Result "0-1"]
[Round "05"]
[TimeControl "180+2"]
[Date "2022.12.20"]
[WhiteClock "0:00:01"]
[BlackClock "0:00:36"]

1. e4 {[%clk 0:03:00]}  d6 {[%clk 0:02:56]} 2. d4 {[%clk 0:03:01]}  Nf6 {[%clk 0:02:56]} 3. Nc3 {[%clk 0:03:02]}  c6 {[%clk 0:02:56]} 4. Nf3 {[%clk 0:03:00]}  Bg4 {[%clk 0:02:55]} 5. Be2 {[%clk 0:02:59]}  e6 {[%clk 0:02:48]} 6. O-O {[%clk 0:02:58]}  d5 {[%clk 0:02:46]} 7. e5 {[%clk 0:02:55]}  Nfd7 {[%clk 0:02:46]} 8. Ng5 {[%clk 0:02:51]}  Bf5 {[%clk 0:02:44]} 9. g4 {[%clk 0:02:41]}  Bg6 {[%clk 0:02:43]} 10. f4 {[%clk 0:02:41]}  Be7 {[%clk 0:02:41]} 11. Nh3 {[%clk 0:02:35]}  f5 {[%clk 0:02:19]} 12. exf6 {[%clk 0:02:23]}  Bxf6 {[%clk 0:02:13]} 13. g5 {[%clk 0:02:13]}  Be7 {[%clk 0:02:12]} 14. Bg4 {[%clk 0:02:13]}  Bf5 {[%clk 0:02:06]} 15. Re1 {[%clk 0:02:05]}  O-O {[%clk 0:02:04]} 16. Qe2 {[%clk 0:02:00]}  Re8 {[%clk 0:01:52]} 17. Bxf5 {[%clk 0:01:51]}  exf5 {[%clk 0:01:52]} 18. Qe6+ {[%clk 0:01:51]}  Kh8 {[%clk 0:01:51]} 19. Qxf5 {[%clk 0:01:50]}  Na6 {[%clk 0:01:34]} 20. Bd2 {[%clk 0:01:34]}  Rf8 {[%clk 0:01:23]} 21. Qe6 {[%clk 0:01:32]}  Bb4 {[%clk 0:01:18]} 22. a3 {[%clk 0:01:23]}  Nc7 {[%clk 0:01:18]} 23. Qg4 {[%clk 0:01:20]}  Bd6 {[%clk 0:01:17]} 24. f5 {[%clk 0:01:08]}  Re8 {[%clk 0:01:13]} 25. Qh5 {[%clk 0:01:02]}  Bf8 {[%clk 0:01:06]} 26. g6 {[%clk 0:00:56]}  h6 {[%clk 0:01:03]} 27. Ng5 {[%clk 0:00:56]}  Nf6 {[%clk 0:00:59]} 28. Qh3 {[%clk 0:00:34]}  Qd7 {[%clk 0:00:58]} 29. Nf7+ {[%clk 0:00:31]}  Kg8 {[%clk 0:00:58]} 30. Bf4 {[%clk 0:00:19]}  Rxe1+ {[%clk 0:00:55]} 31. Rxe1 {[%clk 0:00:17]}  Re8 {[%clk 0:00:55]} 32. Rxe8 {[%clk 0:00:13]}  Ncxe8 {[%clk 0:00:54]} 33. Kf2 {[%clk 0:00:12]}  Bd6 {[%clk 0:00:51]} 34. Ne5 {[%clk 0:00:12]}  Bxe5 {[%clk 0:00:50]} 35. dxe5 {[%clk 0:00:11]}  Ne4+ {[%clk 0:00:47]} 36. Nxe4 {[%clk 0:00:10]}  dxe4 {[%clk 0:00:47]} 37. Qg4 {[%clk 0:00:07]}  Qd4+ {[%clk 0:00:44]} 38. Be3 {[%clk 0:00:06]}  Qxe5 {[%clk 0:00:44]} 39. h4 {[%clk 0:00:04]}  Nf6 {[%clk 0:00:44]} 40. Qh3 {[%clk 0:00:04]}  Nd5 {[%clk 0:00:43]} 41. Ke2 {[%clk 0:00:03]}  Qxb2 {[%clk 0:00:40]} 42. f6 {[%clk 0:00:03]}  Qxc2+ {[%clk 0:00:37]} 43. Ke1 {[%clk 0:00:01]}  Qc3+ {[%clk 0:00:36]} 0-1


[Site "https://www.chess.com"]

[Event "Titled Tuesday Blitz December 20 Early 2022"]
[White "Skoularikis, Fotios"]
[Black "Andrii_Prydun"]
[WhiteFideId "4200500"]
[WhiteElo "2223"]
[BlackElo "2387"]
[Result "1-0"]
[Round "05"]
[TimeControl "180+2"]
[Date "2022.12.20"]
[WhiteClock "0:00:35"]
[BlackClock "0:00:14"]

1. e4 {[%clk 0:02:47]}  c6 {[%clk 0:03:00]} 2. d4 {[%clk 0:02:44]}  d5 {[%clk 0:03:01]} 3. e5 {[%clk 0:02:44]}  Bf5 {[%clk 0:03:00]} 4. Nf3 {[%clk 0:02:43]}  e6 {[%clk 0:02:59]} 5. Be2 {[%clk 0:02:43]}  Ne7 {[%clk 0:03:00]} 6. O-O {[%clk 0:02:37]}  h6 {[%clk 0:02:59]} 7. Nbd2 {[%clk 0:02:36]}  Nd7 {[%clk 0:02:57]} 8. Nb3 {[%clk 0:02:36]}  g5 {[%clk 0:02:56]} 9. a4 {[%clk 0:02:35]}  Ng6 {[%clk 0:02:53]} 10. a5 {[%clk 0:02:32]}  g4 {[%clk 0:02:52]} 11. Ne1 {[%clk 0:02:32]}  h5 {[%clk 0:02:53]} 12. Nd3 {[%clk 0:02:30]}  Be7 {[%clk 0:02:52]} 13. a6 {[%clk 0:02:29]}  b6 {[%clk 0:02:51]} 14. Bd2 {[%clk 0:02:26]}  Bg5 {[%clk 0:02:43]} 15. Rc1 {[%clk 0:02:20]}  Qe7 {[%clk 0:02:42]} 16. c4 {[%clk 0:02:19]}  O-O {[%clk 0:02:34]} 17. cxd5 {[%clk 0:02:17]}  cxd5 {[%clk 0:02:34]} 18. Bb4 {[%clk 0:02:16]}  Qd8 {[%clk 0:02:32]} 19. Bxf8 {[%clk 0:02:14]}  Ndxf8 {[%clk 0:02:32]} 20. Rc3 {[%clk 0:02:01]}  Rc8 {[%clk 0:02:28]} 21. g3 {[%clk 0:01:52]}  Rxc3 {[%clk 0:02:25]} 22. bxc3 {[%clk 0:01:52]}  Nh7 {[%clk 0:02:26]} 23. h4 {[%clk 0:01:50]}  gxh3 {[%clk 0:02:25]} 24. Bxh5 {[%clk 0:01:48]}  Be7 {[%clk 0:02:22]} 25. Kh2 {[%clk 0:01:42]}  Ng5 {[%clk 0:02:19]} 26. f4 {[%clk 0:01:35]}  Ne4 {[%clk 0:02:19]} 27. Qf3 {[%clk 0:01:21]}  Nxc3 {[%clk 0:02:10]} 28. Rc1 {[%clk 0:01:21]}  Be4 {[%clk 0:02:08]} 29. Qe3 {[%clk 0:01:21]}  Nb5 {[%clk 0:01:49]} 30. Nf2 {[%clk 0:01:06]}  Ba3 {[%clk 0:01:17]} 31. Ra1 {[%clk 0:00:58]}  Bb2 {[%clk 0:01:15]} 32. Ra2 {[%clk 0:00:58]}  Bc3 {[%clk 0:01:10]} 33. Nxe4 {[%clk 0:00:58]}  dxe4 {[%clk 0:01:09]} 34. Qxe4 {[%clk 0:00:56]}  Ne7 {[%clk 0:01:09]} 35. Be2 {[%clk 0:00:51]}  Nxd4 {[%clk 0:01:06]} 36. Nxd4 {[%clk 0:00:51]}  Qxd4 {[%clk 0:01:06]} 37. Qxd4 {[%clk 0:00:51]}  Bxd4 {[%clk 0:01:05]} 38. Rd2 {[%clk 0:00:52]}  Bc5 {[%clk 0:01:01]} 39. Rd7 {[%clk 0:00:52]}  Nc6 {[%clk 0:01:00]} 40. Kxh3 {[%clk 0:00:49]}  Nd4 {[%clk 0:00:51]} 41. Bh5 {[%clk 0:00:49]}  b5 {[%clk 0:00:45]} 42. Bxf7+ {[%clk 0:00:48]}  Kh8 {[%clk 0:00:44]} 43. Rxd4 {[%clk 0:00:43]}  Bxd4 {[%clk 0:00:44]} 44. Bxe6 {[%clk 0:00:44]}  Kg7 {[%clk 0:00:41]} 45. Bb3 {[%clk 0:00:45]}  Kg6 {[%clk 0:00:36]} 46. Kg4 {[%clk 0:00:44]}  Kg7 {[%clk 0:00:31]} 47. Kf5 {[%clk 0:00:44]}  Kf8 {[%clk 0:00:29]} 48. g4 {[%clk 0:00:45]}  Kg7 {[%clk 0:00:21]} 49. g5 {[%clk 0:00:45]}  Bc5 {[%clk 0:00:21]} 50. Ke4 {[%clk 0:00:44]}  Be7 {[%clk 0:00:20]} 51. Kf3 {[%clk 0:00:44]}  Bc5 {[%clk 0:00:16]} 52. f5 {[%clk 0:00:43]}  Bd4 {[%clk 0:00:16]} 53. Ke4 {[%clk 0:00:43]}  Bc3 {[%clk 0:00:15]} 54. f6+ {[%clk 0:00:41]}  Kg6 {[%clk 0:00:15]} 55. e6 {[%clk 0:00:36]}  Bxf6 {[%clk 0:00:14]} 56. gxf6 {[%clk 0:00:35]}  Kxf6 {[%clk 0:00:15]} 57. Kd5 {[%clk 0:00:36]}  Ke7 {[%clk 0:00:15]} 58. Kc5 {[%clk 0:00:36]}  b4 {[%clk 0:00:14]} 59. Kxb4 {[%clk 0:00:35]} 1-0


[Site "https://www.chess.com"]